bitfinex-derivatives/quotes_SOLF0:USTF0_20250207
["timestamp","ask_amount","ask_price","bid_price","bid_amount"]
[1738945654606,0.03328401,197.34,197.33,5.0653]
[1738945655099,0.03328401,197.34,197.31,1.5293]
[1738945655694,5.09838401,197.34,197.31,1.5293]
[1738945656101,0.03328401,197.34,197.31,1.5293]
[1738945656703,0.03328401,197.34,197.32,5.0656]
[1738945657205,22.23943446,197.34,197.3,0.03574021]
[1738945657410,5.0658,197.31,197.3,0.03574021]
[1738945657713,22.23943446,197.34,197.24,1.6388]
[1738945658014,5.0664,197.29,197.24,1.6388]
[1738945658911,0.03564872,197.28,197.25,0.03303219]
[1738945661112,5.10234872,197.28,197.25,0.03303219]
[1738945662413,0.03564872,197.28,197.25,0.03303219]
[1738945665615,5.10244872,197.28,197.25,0.03303219]
[1738945666916,0.03564872,197.28,197.25,0.03303219]
[1738945667818,5.10224872,197.28,197.25,0.03303219]
[1738945669219,0.03564872,197.28,197.25,0.03303219]
[1738945669816,5.10234872,197.28,197.25,0.03303219]
[1738945670316,0.03564872,197.28,197.25,0.03303219]
[1738945671724,18.94089409,197.26,197.25,0.03303219]
[1738945672416,5.0681,197.23,197.17,1.5847]
[1738945672612,13.87379409,197.21,197.17,1.5847]
[1738945673017,13.87379409,197.21,197.15,5.0699]
[1738945673614,0.03481935,197.2,197.16,0.03440126]
[1738945674921,13.87379409,197.18,197.16,0.03440126]
[1738945675217,5.0694,197.17,197.16,0.03440126]
[1738945675527,13.87379409,197.18,197.07,192.0]
[1738945675709,18.94399409,197.14,197.06,3.1298]
[1738945675907,13.87379409,197.14,197.06,3.1298]
[1738945676722,0.03467159,197.12,197.08,0.03663571]
[1738945677420,18.94249409,197.2,197.08,0.03663571]
[1738945677623,18.94249409,197.2,197.07,13.87379409]
[1738945678115,5.0684,197.21,197.1,13.87379409]
[1738945678319,18.51379409,197.23,197.14,5.07]
[1738945678513,18.51379409,197.23,197.14,0.03195209]
[1738945678514,0.03379837,197.17,197.14,0.03195209]
[1738945679722,0.03379837,197.17,197.16,5.0697]
[1738945681021,0.03379837,197.17,197.15,1.5935]
[1738945681919,0.03379837,197.17,197.16,5.0697]
[1738945682724,0.03379837,197.17,197.15,6.6634]
[1738945683923,0.03379837,197.17,197.14,0.03195209]
[1738945684424,5.0697,197.16,197.14,0.03195209]
[1738945685921,22.25326276,197.17,197.14,0.03195209]
[1738945685922,27.32276276,197.17,197.14,0.03195209]
[1738945686227,22.25326276,197.17,197.14,0.03195209]
[1738945686730,5.0697,197.16,197.14,0.03195209]
[1738945687530,0.03379837,197.17,197.14,0.03195209]
[1738945687919,0.03379837,197.17,197.15,5.0698]
[1738945688118,0.03379837,197.17,197.14,0.03195209]
[1738945689322,0.03379837,197.17,197.16,5.0697]
[1738945690528,0.03379837,197.17,197.14,5.10215209]
[1738945690824,0.03379837,197.17,197.14,0.03195209]
[1738945691829,0.03379837,197.17,197.16,5.0697]
[1738945692031,0.03379837,197.17,197.14,0.03195209]
[1738945692528,26.85946439,197.3,197.14,22.25141648]
[1738945692730,26.85946439,197.3,197.15,3.1566]
[1738945693030,5.0682,197.22,197.16,5.0696]
[1738945693232,22.21946439,197.26,197.15,3.1566]
[1738945693424,22.21946439,197.26,197.17,5.0692]
[1738945693630,5.0677,197.24,197.15,3.1566]
[1738945693830,0.0369169,197.23,197.2,0.03567908]
[1738945696722,5.1050169,197.23,197.2,0.03567908]
[1738945696928,0.0369169,197.23,197.2,0.03567908]
[1738945697733,0.0369169,197.23,197.08,193.5194]
[1738945698032,22.21946439,197.2,197.08,193.5194]
[1738945698224,4.64,197.19,197.08,1.5194]
[1738945698533,4.64,197.19,197.05,27.32033929]
[1738945698731,4.64,197.19,197.06,1.6106]
[1738945698928,0.0328554,197.14,197.1,0.03331121]
[1738945699329,0.0328554,197.14,197.1,5.10451121]
[1738945700024,0.0328554,197.14,197.1,0.03331121]
[1738945700732,13.93327313,197.14,197.1,0.03331121]
[1738945701324,19.00367313,197.14,197.1,0.03331121]
[1738945701530,13.93327313,197.14,197.1,0.03331121]
[1738945703234,13.90041773,197.11,197.1,0.03331121]
[1738945703434,18.97141773,197.11,197.1,0.03331121]
[1738945704133,13.93327313,197.14,197.1,0.03331121]
[1738945705434,5.0709,197.12,197.1,0.03331121]
[1738945705937,13.93327313,197.14,197.1,0.03331121]
[1738945706137,5.0708,197.12,197.1,0.03331121]
[1738945706634,19.00377313,197.14,197.1,0.03331121]
[1738945707045,13.93327313,197.14,197.1,0.03331121]
[1738945707338,5.0705,197.13,197.1,0.03331121]
[1738945707540,13.93327313,197.14,197.1,0.03331121]
[1738945707742,0.0328554,197.14,197.1,0.03331121]
[1738945709237,0.0328554,197.14,197.11,5.0709]
[1738945709740,18.54041773,197.26,197.12,13.90041773]
[1738945709945,18.54041773,197.26,197.17,5.0693]
[1738945710238,18.54041773,197.26,197.18,1.5304]
[1738945710746,4.64,197.27,197.18,1.5304]
[1738945711039,0.03600798,197.24,197.2,0.03341534]
[1738945711240,13.90041773,197.23,197.2,0.03341534]
[1738945711640,5.0684,197.21,197.2,0.03341534]
[1738945712244,18.96741773,197.23,197.1,1.5304]
[1738945712435,0.525,197.28,197.1,1.5304]
[1738945712436,13.90041773,197.16,197.1,1.5304]
[1738945713335,0.03298348,197.15,197.11,0.03388937]
[1738945713845,0.03298348,197.15,197.12,5.0707]
[1738945714047,0.03298348,197.15,197.11,0.03388937]
[1738945714346,0.03298348,197.15,197.12,5.0707]
[1738945714549,0.03298348,197.15,197.11,0.03388937]
[1738945715044,0.03298348,197.15,197.11,1.57278937]
[1738945716140,0.03298348,197.15,197.13,5.0702]
[1738945717039,0.03298348,197.15,197.11,6.64348937]
[1738945717546,0.03298348,197.15,197.11,1.57278937]
[1738945717845,0.03298348,197.15,197.12,5.0705]
[1738945718041,0.03298348,197.15,197.11,1.57278937]
[1738945718346,4.64,197.23,197.16,5.0695]
[1738945718538,4.64,197.23,197.11,193.5389]
[1738945718743,22.226331,197.26,197.11,215.765231]
[1738945718936,4.64,197.28,197.18,5.0691]
[1738945719142,4.64,197.28,197.11,215.765231]
[1738945719143,5.0698,197.16,197.11,192.0]
[1738945719445,22.226331,197.17,197.1,1.5304]
[1738945719642,0.03673619,197.15,197.12,0.03476478]
[1738945721152,5.0703,197.14,197.12,0.03476478]
[1738945721548,0.03673619,197.15,197.12,0.03476478]
[1738945721845,5.10673619,197.15,197.12,0.03476478]
[1738945723046,0.03673619,197.15,197.12,0.03476478]
[1738945724048,0.03673619,197.15,197.13,5.0702]
[1738945724347,4.62,197.24,197.12,0.03476478]
[1738945724543,4.62,197.24,197.12,192.0]
[1738945724746,4.62,197.24,197.13,1.5623]
[1738945725152,4.62,197.24,197.13,6.6327]
[1738945725352,4.62,197.24,197.13,1.5623]
[1738945725547,0.03201995,197.2,197.17,0.03750214]
[1738945726246,22.226331,197.18,197.17,0.03750214]
[1738945726552,5.0696,197.17,197.1,1.5304]
[1738945726742,22.226331,197.18,197.1,1.5304]
[1738945727153,22.226331,197.22,197.1,1.5304]
[1738945727643,0.03737601,197.18,197.14,0.03636331]
[1738945729350,0.03737601,197.18,197.14,5.10636331]
[1738945731256,9.6877,197.24,197.14,0.03636331]
[1738945731653,5.0677,197.24,197.17,5.0692]
[1738945731849,26.846331,197.26,197.18,1.6465]
[1738945732054,22.226331,197.26,197.18,1.6465]
[1738945732256,0.03452315,197.24,197.2,0.0385575]
[1738945732754,5.068,197.23,197.2,0.0385575]
[1738945732948,0.03452315,197.24,197.2,0.0385575]
[1738945734759,22.226331,197.3,197.2,0.0385575]
[1738945735059,4.62,197.33,197.2,0.0385575]
[1738945735262,4.62,197.33,197.19,193.6447]
[1738945735454,5.0659,197.31,197.23,5.0678]
[1738945735654,5.0659,197.31,197.19,193.6447]
[1738945736057,5.0659,197.31,197.25,5.0673]
[1738945736252,5.0659,197.31,197.23,0.03299701]
[1738945737253,22.226331,197.34,197.23,0.03299701]
[1738945737453,5.0653,197.33,197.23,0.03299701]
[1738945737859,22.226331,197.34,197.23,0.03299701]
[1738945738458,22.226331,197.34,197.28,5.0664]
[1738945738660,22.226331,197.34,197.29,1.6029]
[1738945738861,22.226331,197.34,197.29,1.63534326]
[1738945739260,22.226331,197.34,197.29,0.03244326]
[1738945739661,22.226331,197.3,197.2,1.6029]
[1738945739861,5.0666,197.28,197.2,1.6029]
[1738945740365,5.0664,197.29,197.2,1.6029]
[1738945740559,5.0664,197.29,197.21,1.6541]
[1738945740759,5.0664,197.29,197.22,5.0679]
[1738945740959,0.03365311,197.27,197.23,0.03255783]
[1738945743268,0.03365311,197.27,197.24,5.0676]
[1738945743467,0.03365311,197.27,197.23,0.03255783]
[1738945743963,13.87963041,197.25,197.23,0.03255783]
[1738945744665,5.0672,197.26,197.23,0.03255783]
[1738945745067,5.10055311,197.27,197.23,0.03255783]
[1738945745465,0.03365311,197.27,197.23,5.10035783]
[1738945745868,0.03365311,197.27,197.23,0.03255783]
[1738945747477,18.49963041,197.34,197.23,0.03255783]
[1738945747677,13.87963041,197.34,197.23,0.03255783]
[1738945748179,13.87963041,197.37,197.24,13.87963041]
[1738945748468,13.87963041,197.37,197.24,205.87963041]
[1738945748671,18.94413041,197.37,197.29,0.03673597]
[1738945748874,13.87963041,197.37,197.29,0.03673597]
[1738945749069,5.0655,197.33,197.29,0.03673597]
[1738945749270,13.87963041,197.34,197.29,0.03673597]
[1738945749673,13.87963041,197.31,197.29,0.03673597]
[1738945750173,5.0669,197.27,197.24,192.0]
[1738945750373,13.87963041,197.26,197.2,1.6029]
[1738945751175,13.87963041,197.26,197.2,6.6714]
[1738945751374,0.03326751,197.25,197.21,0.03558294]
[1738945754179,0.03326751,197.25,197.21,5.10398294]
[1738945754477,0.03326751,197.25,197.21,0.03558294]
[1738945756076,0.03326751,197.25,197.21,5.10378294]
[1738945756276,0.03326751,197.25,197.21,0.03558294]
[1738945756675,0.03326751,197.25,197.21,5.10398294]
[1738945759685,0.03326751,197.25,197.21,0.03558294]
[1738945760381,5.10086751,197.25,197.21,0.03558294]
[1738945760586,22.21304921,197.22,197.14,192.0]
[1738945760885,5.0689,197.2,197.14,192.0]
[1738945761086,5.0689,197.2,197.12,6.5884]
[1738945761783,0.03425744,197.18,197.14,0.03552193]
[1738945762680,5.0697,197.17,197.14,0.03552193]
[1738945763983,0.03425744,197.18,197.14,0.03552193]
[1738945767189,0.03425744,197.18,197.15,5.0699]
[1738945767390,0.03425744,197.18,197.14,0.03552193]
[1738945767689,0.03425744,197.18,197.15,5.0699]
[1738945767879,0.03425744,197.18,197.14,0.03552193]
[1738945769884,5.0699,197.15,197.14,0.03552193]
[1738945771282,0.03425744,197.18,197.14,0.03552193]
[1738945771490,5.10345744,197.18,197.14,0.03552193]
[1738945771689,0.03425744,197.18,197.14,0.03552193]
[1738945772788,5.0696,197.17,197.14,0.03552193]
[1738945773387,0.03425744,197.18,197.14,0.03552193]
[1738945774389,0.03425744,197.18,197.14,5.10572193]
[1738945774593,0.03425744,197.18,197.14,0.03552193]
[1738945775488,5.10345744,197.18,197.14,0.03552193]
[1738945775689,0.03425744,197.18,197.14,0.03552193]
[1738945776190,13.89181746,197.17,197.14,0.03552193]
[1738945776694,5.0699,197.15,197.14,0.03552193]
[1738945777893,13.89181746,197.17,197.14,0.03552193]
[1738945778092,0.03425744,197.18,197.14,0.03552193]
[1738945778689,5.0698,197.16,197.14,0.03552193]
[1738945779798,5.10365744,197.18,197.14,0.03552193]
[1738945780696,0.03425744,197.18,197.14,0.03552193]
[1738945783394,5.0697,197.17,197.14,0.03552193]
[1738945783793,0.03425744,197.18,197.14,0.03552193]
[1738945783992,5.0697,197.16,197.14,0.03552193]
[1738945784394,5.0695,197.17,197.14,0.03552193]
[1738945786497,0.03425744,197.18,197.14,0.03552193]
[1738945786694,0.03425744,197.18,197.14,5.10572193]
[1738945787395,0.03425744,197.18,197.15,5.0699]
[1738945787601,0.03425744,197.18,197.14,0.03552193]
[1738945788598,5.0697,197.16,197.14,0.03552193]
[1738945788796,0.03425744,197.18,197.14,0.03552193]
[1738945789801,5.0695,197.17,197.14,0.03552193]
[1738945790593,0.03425744,197.18,197.14,0.03552193]
[1738945790794,5.10345744,197.18,197.14,0.03552193]
[1738945791500,5.0695,197.17,197.14,0.03552193]
[1738945791905,0.03425744,197.18,197.14,0.03552193]
[1738945792101,5.0695,197.17,197.14,0.03552193]
[1738945792403,0.03425744,197.18,197.14,0.03552193]
[1738945792609,5.0699,197.15,197.14,0.03552193]
[1738945792800,18.96171746,197.15,197.14,0.03552193]
[1738945794003,8.71920048,197.15,197.14,0.03552193]
[1738945794910,13.78910048,197.15,197.14,0.03552193]
[1738945795104,8.71920048,197.15,197.14,0.03552193]
[1738945795810,13.9260749,197.18,197.14,0.03552193]
[1738945796806,5.0696,197.17,197.14,0.03552193]
[1738945797704,13.9260749,197.18,197.14,0.03552193]
[1738945798412,18.9953749,197.18,197.14,0.03552193]
[1738945800309,0.03425744,197.18,197.14,0.03552193]
[1738945800507,5.067,197.26,197.14,0.03552193]
[1738945800713,5.067,197.26,197.14,3.18862193]
[1738945800906,13.89181746,197.21,197.14,3.1531]
[1738945801110,13.89181746,197.18,197.14,1.5169]
[1738945801309,13.89181746,197.18,197.08,1.636]
[1738945801508,13.89181746,197.21,197.08,3.1529]
[1738945801708,13.89181746,197.21,197.08,195.1529]
[1738945801911,0.03458792,197.15,197.11,0.03256733]
[1738945803112,0.03458792,197.15,197.12,5.0707]
[1738945803313,0.03458792,197.15,197.11,0.03256733]
[1738945804012,13.92640538,197.15,197.11,0.03256733]
[1738945804210,0.03458792,197.15,197.11,0.03256733]
[1738945804610,0.03458792,197.15,197.11,5.10326733]
[1738945804918,0.03458792,197.15,197.11,0.03256733]
[1738945806519,5.0703,197.14,197.11,0.03256733]
[1738945807313,13.89181746,197.13,197.11,0.03256733]
[1738945807620,18.96251746,197.13,197.11,0.03256733]
[1738945807921,13.89181746,197.13,197.11,0.03256733]
[1738945808319,5.10468792,197.15,197.11,0.03256733]
[1738945808713,5.0703,197.14,197.11,0.03256733]
[1738945808921,0.03458792,197.15,197.11,0.03256733]
[1738945809823,92.20682094,197.26,197.14,5.07]
[1738945809824,5.0679,197.23,197.14,5.07]
[1738945810018,5.0679,197.23,197.11,13.92438479]
[1738945810019,5.0679,197.23,197.15,1.5118]
[1738945810218,18.49181746,197.24,197.15,1.5118]
[1738945810418,23.55951746,197.24,197.16,5.0696]
[1738945810624,13.89181746,197.27,197.15,1.5118]
[1738945810925,92.20682094,197.28,197.19,0.03485802]
[1738945811421,92.20682094,197.28,197.22,5.0681]
[1738945811621,80.97485086,197.28,197.17,13.89181746]
[1738945811818,80.97485086,197.28,197.2,13.89181746]
[1738945812013,80.97485086,197.28,197.23,0.03668256]
[1738945812217,13.89181746,197.33,197.23,0.03668256]
[1738945812921,13.89181746,197.3,197.23,0.03668256]
[1738945813123,5.0666,197.28,197.23,0.03668256]
[1738945813322,13.89181746,197.3,197.23,0.03668256]
[1738945814021,5.0664,197.29,197.23,0.03668256]
[1738945814223,13.89181746,197.3,197.23,0.03668256]
[1738945814519,13.89181746,197.3,197.24,5.0676]
[1738945814723,13.89181746,197.33,197.24,6.6504]
[1738945814924,13.89181746,197.33,197.24,1.5828]
[1738945815324,13.89181746,197.33,197.27,0.03222493]
[1738945816826,18.95641746,197.36,197.28,5.0666]
[1738945817127,13.89181746,197.36,197.27,0.03222493]
[1738945817523,13.89181746,197.36,197.29,5.0663]
[1738945817927,5.0649,197.35,197.27,5.09892493]
[1738945818127,13.89181746,197.36,197.27,0.03222493]
[1738945818521,13.89181746,197.33,197.27,0.03222493]
[1738945819125,5.0659,197.31,197.27,0.03222493]
[1738945819833,5.0656,197.32,197.27,0.03222493]
[1738945820031,13.89181746,197.33,197.27,0.03222493]
[1738945820625,18.47181746,197.4,197.27,0.03222493]
[1738945821135,13.89181746,197.34,197.31,0.03836006]
[1738945824033,5.066,197.31,197.24,1.5828]
[1738945824235,13.89181746,197.29,197.24,1.5828]
[1738945824937,13.89181746,197.29,197.24,6.6502]
[1738945825138,0.03411862,197.28,197.25,0.03817389]
[1738945825436,13.89181746,197.32,197.27,5.0667]
[1738945825633,0.03489063,197.28,197.27,5.0667]
[1738945826142,0.03489063,197.28,197.25,0.03817389]
[1738945826737,13.89181746,197.26,197.25,0.03817389]
[1738945827544,18.95891746,197.26,197.25,0.03817389]
[1738945827744,13.89181746,197.26,197.17,5.0692]
[1738945828043,13.89181746,197.26,197.15,4.6574]
[1738945828244,5.0674,197.25,197.18,5.069]
[1738945828641,5.0674,197.25,197.15,4.6574]
[1738945828944,0.03400464,197.23,197.2,0.03454359]
[1738945829745,13.89181746,197.32,197.2,0.03454359]
[1738945829944,13.89181746,197.32,197.2,13.89181746]
[1738945830246,18.95761746,197.32,197.25,5.0671]
[1738945830444,13.89181746,197.32,197.25,5.0671]
[1738945830947,0.0362617,197.3,197.27,0.03432638]
[1738945831650,13.89181746,197.29,197.27,0.03432638]
[1738945832141,5.0666,197.28,197.27,0.03432638]
[1738945833147,5.0671,197.27,197.19,5.0688]
[1738945833348,13.89181746,197.26,197.19,5.0688]
[1738945833746,13.89181746,197.26,197.17,192.0]
[1738945833747,13.89181746,197.26,197.2,5.0686]
[1738945833952,13.89181746,197.26,197.17,192.0]
[1738945834147,13.89181746,197.29,197.17,192.0]
[1738945834346,0.03660198,197.23,197.2,0.03398528]
[1738945834646,0.03660198,197.23,197.22,5.0681]
[1738945835044,13.89181746,197.32,197.2,0.03398528]
[1738945835248,13.89181746,197.32,197.17,205.89181746]
[1738945835649,18.95761746,197.32,197.17,205.89181746]
[1738945836351,13.89181746,197.32,197.26,5.067]
[1738945836547,0.03270685,197.26,197.23,0.03720973]
[1738945836752,5.0655,197.33,197.19,22.19577834]
[1738945836952,5.0655,197.33,197.26,0.03434798]
[1738945837152,0.03231553,197.28,197.26,0.03434798]
[1738945837347,0.03231553,197.28,197.26,5.10144798]
[1738945837653,5.0655,197.33,197.26,0.03434798]
[1738945837850,5.0654,197.33,197.27,5.0667]
[1738945838051,5.0654,197.33,197.26,0.03434798]
[1738945838251,22.19577834,197.36,197.26,0.03434798]
[1738945838450,5.0658,197.32,197.26,0.03434798]
[1738945839050,5.0658,197.32,197.26,5.10144798]
[1738945840657,22.19577834,197.36,197.26,0.03434798]
[1738945840857,5.0668,197.28,197.26,0.03434798]
[1738945841058,22.19577834,197.32,197.26,0.03434798]
[1738945841458,5.0653,197.33,197.26,5.10144798]
[1738945841657,22.19577834,197.36,197.26,0.03434798]
[1738945842055,4.58,197.37,197.26,0.03434798]
[1738945842556,105.494,197.39,197.26,0.03434798]
[1738945842748,100.42,197.39,197.24,3.2374]
[1738945842953,100.42,197.39,197.25,1.6006]
[1738945843251,100.42,197.39,197.3,0.03595749]
[1738945843465,100.42,197.39,197.3,5.10205749]
[1738945843466,5.0643,197.37,197.3,5.10205749]
[1738945843758,100.42,197.39,197.3,5.10205749]
[1738945843759,100.42,197.39,197.3,0.03595749]
[1738945843956,5.0653,197.34,197.3,0.03595749]
[1738945844158,22.19577834,197.36,197.3,0.03595749]
[1738945844460,5.0658,197.31,197.3,0.03595749]
[1738945844658,22.19577834,197.32,197.25,1.6006]
[1738945845258,5.0661,197.31,197.25,1.6006]
[1738945845457,5.0661,197.31,197.24,3.2374]
[1738945845458,22.19577834,197.32,197.16,6.97087243]
[1738945845663,5.0669,197.27,197.2,5.0686]
[1738945845960,0.0386651,197.26,197.22,0.03392856]
[1738945846755,5.1058651,197.26,197.22,0.03392856]
[1738945846957,0.0386651,197.26,197.22,0.03392856]
[1738945847662,22.19577834,197.24,197.17,1.522]
[1738945848057,5.0682,197.22,197.17,1.522]
[1738945848257,22.19577834,197.24,197.17,1.522]
[1738945848861,0.03459497,197.22,197.19,0.0375152]
[1738945853160,5.0684,197.21,197.19,0.0375152]
[1738945854361,5.0687,197.2,197.19,0.0375152]
[1738945856659,18.95966106,197.2,197.19,0.0375152]
[1738945857459,5.10299497,197.22,197.19,0.0375152]
[1738945857663,0.03459497,197.22,197.19,0.0375152]
[1738945857861,13.89096106,197.2,197.19,0.0375152]
[1738945858063,13.89096106,197.2,197.13,1.5513]
[1738945858861,13.89096106,197.17,197.13,1.5513]
[1738945859366,13.92304995,197.17,197.13,1.58455481]
[1738945859764,0.03208889,197.17,197.13,1.58455481]
[1738945860767,13.89096106,197.23,197.14,1.6299]
[1738945860966,13.89096106,197.26,197.14,1.6299]
[1738945861367,13.89096106,197.29,197.16,13.89096106]
[1738945861868,0.03682783,197.24,197.21,0.03888014]
[1738945863266,0.03682783,197.24,197.21,5.10708014]
[1738945863976,0.03682783,197.24,197.21,0.03888014]
[1738945865667,5.0689,197.19,197.14,193.6299]
[1738945865867,22.21156582,197.22,197.14,1.6299]
[1738945866068,22.21156582,197.26,197.14,1.6299]
[1738945866663,0.03850578,197.22,197.18,0.03221194]
[1738945867670,5.10670578,197.22,197.18,0.03221194]
[1738945867876,0.03850578,197.22,197.18,0.03221194]
[1738945868376,0.03850578,197.22,197.21,5.0684]
[1738945868575,0.03850578,197.22,197.18,0.03221194]
[1738945868776,0.03850578,197.22,197.19,5.0687]
[1738945868975,0.03850578,197.22,197.18,0.03221194]
[1738945870372,0.03850578,197.22,197.2,5.0684]
[1738945870569,0.03850578,197.22,197.18,0.03221194]
[1738945870966,0.03850578,197.22,197.21,5.0684]
[1738945871376,22.21156582,197.31,197.18,0.03221194]
[1738945871573,22.21156582,197.31,197.14,193.6299]
[1738945871574,5.0669,197.27,197.21,5.0684]
[1738945871773,22.21156582,197.31,197.14,193.6299]
[1738945871974,22.21156582,197.27,197.14,193.6299]
[1738945872175,22.21156582,197.27,197.16,5.0695]
[1738945872376,22.21156582,197.23,197.14,193.6299]
[1738945872575,22.21156582,197.23,197.2,0.0323426]
[1738945872576,22.24375742,197.23,197.2,0.0323426]
[1738945872770,5.0684,197.21,197.2,0.0323426]
[1738945872975,4.56,197.21,197.05,192.0]
[1738945873176,22.21156582,197.17,197.06,1.5985]
[1738945873379,22.21156582,197.13,197.08,7.02217776]
[1738945874083,0.03662944,197.12,197.09,0.03451072]
[1738945875488,0.03662944,197.12,197.1,5.0712]
[1738945875680,0.03662944,197.12,197.09,0.03451072]
[1738945876079,0.03662944,197.12,197.11,5.071]
[1738945876884,4.56,197.2,197.14,5.0701]
[1738945877083,22.21156582,197.21,197.09,192.0]
[1738945877787,4.56,197.24,197.09,192.0]
[1738945877989,0.03337619,197.17,197.13,0.03827746]
[1738945878189,0.03337619,197.17,197.16,5.0697]
[1738945878390,4.56,197.24,197.13,0.03827746]
[1738945878990,5.0681,197.23,197.16,5.0697]
[1738945879494,4.56,197.24,197.09,192.0]
[1738945879686,0.03430628,197.21,197.18,0.03634355]
[1738945880291,5.0687,197.2,197.18,0.03634355]
[1738945880686,0.03430628,197.21,197.18,0.03634355]
[1738945881295,5.0689,197.2,197.18,0.03634355]
[1738945881597,0.03430628,197.21,197.09,192.0]
[1738945881790,22.21156582,197.16,197.07,1.6033]
[1738945882697,0.0369846,197.13,197.1,0.03467926]
[1738945883193,0.0369846,197.13,197.12,5.0707]
[1738945883389,9.6284,197.22,197.1,0.03467926]
[1738945883587,4.56,197.22,197.07,193.6033]
[1738945883787,4.56,197.22,197.15,5.0699]
[1738945884298,4.56,197.22,197.07,193.6033]
[1738945884501,4.56,197.22,197.14,5.0701]
[1738945884502,5.0686,197.21,197.14,5.0701]
[1738945884798,0.03692343,197.16,197.14,5.0701]
[1738945884995,0.03692343,197.16,197.15,5.0699]
[1738945886101,5.0671,197.27,197.14,1.658]
[1738945886297,5.0671,197.27,197.15,1.6082]
[1738945886599,22.21156582,197.28,197.19,5.0688]
[1738945886791,22.21156582,197.28,197.15,1.6082]
[1738945887198,22.21156582,197.28,197.2,0.03504808]
[1738945887705,22.21156582,197.32,197.2,0.03504808]
[1738945888205,22.21156582,197.32,197.23,5.0676]
[1738945888394,22.21156582,197.32,197.15,1.6082]
[1738945888590,22.21156582,197.32,197.24,0.03217637]
[1738945888793,22.21156582,197.28,197.24,0.03217637]
[1738945890102,5.067,197.27,197.24,0.03217637]
[1738945890296,22.21156582,197.28,197.24,0.03217637]
[1738945890800,5.0674,197.25,197.24,0.03217637]
[1738945891702,22.21156582,197.28,197.16,1.5977]
[1738945891896,22.21156582,197.23,197.15,1.6082]
[1738945892098,26.77156582,197.23,197.15,1.6082]
[1738945892295,5.0695,197.17,197.1,1.5428]
[1738945892696,22.21156582,197.19,197.1,1.5428]
[1738945892904,22.21156582,197.19,197.08,1.5444]
[1738945893102,22.21156582,197.19,197.12,0.03845788]
[1738945893103,22.24414363,197.15,197.12,0.03845788]
[1738945893602,0.03257781,197.15,197.12,0.03845788]
[1738945895102,0.03257781,197.15,197.12,5.10915788]
[1738945895298,0.03257781,197.15,197.12,0.03845788]
[1738945895807,0.03257781,197.15,197.13,5.0705]
[1738945896401,4.56,197.23,197.12,0.03845788]
[1738945897006,4.56,197.23,197.18,5.0691]
[1738945897411,4.56,197.23,197.08,215.75596582]
[1738945898008,4.56,197.23,197.14,0.0342232]
[1738945898506,4.56,197.23,197.19,5.0688]
[1738945898707,4.56,197.23,197.15,1.4992]
[1738945898906,4.56,197.23,197.19,0.0376173]
[1738945899804,5.0687,197.2,197.19,0.0376173]
[1738945900803,4.56,197.23,197.19,0.0376173]
[1738945901905,4.56,197.23,197.2,5.0685]
[1738945902104,5.074,197.29,197.2,5.0685]
[1738945902307,26.77156582,197.3,197.19,0.0376173]
[1738945903708,22.21156582,197.25,197.19,0.0376173]
[1738945904804,22.21156582,197.29,197.19,0.0376173]
[1738945905009,22.21156582,197.29,197.12,214.21156582]
[1738945905209,22.21156582,197.29,197.22,0.03344082]
[1738945905905,5.0679,197.23,197.22,0.03344082]
[1738945906613,5.0677,197.24,197.22,0.03344082]
[1738945907307,22.21156582,197.25,197.22,0.03344082]
[1738945907508,5.0672,197.26,197.22,0.03344082]
[1738945909215,5.0678,197.24,197.22,0.03344082]
[1738945909913,22.21156582,197.29,197.22,0.03344082]
[1738945910413,31.81816582,197.29,197.23,5.0679]
[1738945911214,5.0666,197.28,197.22,5.10154082]
[1738945911514,22.21156582,197.29,197.22,0.03344082]
[1738945912014,22.21156582,197.29,197.23,5.0678]
[1738945912710,22.21156582,197.29,197.22,5.10154082]
[1738945912711,5.0666,197.28,197.22,5.10154082]
[1738945913821,5.0666,197.28,197.22,0.03344082]
[1738945914317,5.0671,197.26,197.22,0.03344082]
[1738945915120,5.0674,197.25,197.22,0.03344082]
[1738945915619,27.27946582,197.23,197.22,0.03344082]
[1738945916014,22.21156582,197.23,197.12,192.0]
[1738945916216,5.0685,197.21,197.14,5.0701]
[1738945916418,22.21156582,197.23,197.12,192.0]
[1738945916617,5.0693,197.18,197.12,192.0]
[1738945917021,22.21156582,197.19,197.12,192.0]
[1738945917217,0.03621208,197.17,197.13,5.1073733]
[1738945918620,0.03621208,197.17,197.13,0.0371733]